fUSD/lending_fUSD_20250818
["ID","MTS","AMOUNT","RATE_DAILY","PERIOD"]
[380031544,1755488435072,1000.0,6.6e-07,120]
[380031545,1755488437306,-303.02507088,9.697e-05,2]
[380031546,1755488437329,-60.16516812,9.697e-05,2]
[380031547,1755488439544,-227.80183962,9.697e-05,2]
[380031548,1755488441353,-62.56845692,9.697e-05,2]
[380031549,1755488441377,-109.82574404,9.697e-05,2]
[380031550,1755488449535,1000.0,6.6e-07,120]
[380031551,1755488452190,-219.75259562,9.696e-05,2]
[380031552,1755488452213,-14.83099325,9.696e-05,2]
[380031553,1755488454548,-156.842551,9.696e-05,2]
[380031554,1755488455067,1000.0,6.6e-07,120]
[380031555,1755488456113,-171.79,9.696e-05,2]
[380031556,1755488460352,-197.54760568,9.696e-05,2]
[380031557,1755488460376,-137.91502129,9.696e-05,2]
[380031558,1755488462541,-18.62143446,9.696e-05,2]
[380031559,1755488462563,-147.51048228,9.696e-05,2]
[380031560,1755488463044,1000.0,6.6e-07,120]
[380031561,1755488464859,-141.57229247,9.696e-05,2]
[380031562,1755488464884,-41.12047962,9.697e-05,2]
[380031563,1755488466449,-137.2766729,9.696e-05,2]
[380031564,1755488466850,-22.37030811,9.696e-05,2]
[380031565,1755488466875,-38.88860822,9.697e-05,2]
[380031566,1755488466896,-112.81399441,9.697e-05,2]
[380031567,1755488468641,-166.55309189,9.697e-05,2]
[380031568,1755488471431,1000.0,6.6e-07,120]
[380031569,1755488471785,-150.47836311,9.696e-05,2]
[380031570,1755488471806,-256.94541266,9.697e-05,2]
[380031571,1755488476559,-328.54306637,9.647e-05,2]
[380031572,1755488479141,-285.50183495,9.647e-05,2]
[380031573,1755488479335,1000.0,6.6e-07,120]
[380031574,1755488482343,-126.89773768,9.647e-05,2]
[380031575,1755488482365,-114.66673896,9.697e-05,2]
[380031576,1755488484010,324.94920864,9.696e-05,2]
[380031577,1755488484364,10000.0,0.00014,10]
[380031578,1755488484721,-15.40381035,9.696e-05,2]
[380031579,1755488484745,-182.37303037,9.697e-05,2]
[380031580,1755488486854,1000.0,6.6e-07,120]
[380031581,1755488487442,-264.92536003,9.696e-05,2]
[380031582,1755488489213,-5.18218298,9.696e-05,2]
[380031583,1755488490732,139.63563404,9.696e-05,2]
[380031584,1755488495467,1000.0,6.6e-07,120]
[380031585,1755488496995,10000.0,0.00014,10]
[380031586,1755488503616,-185.3135746,9.696e-05,2]
[380031587,1755488503637,-1.6793395,9.697e-05,2]
[380031588,1755488504473,1000.0,6.6e-07,120]
[380031589,1755488505469,-5.45914438,9.697e-05,2]
[380031590,1755488505863,-397.03631483,9.698e-05,2]
[380031591,1755488508144,-169.16365603,9.698e-05,2]
[380031592,1755488515079,1000.0,6.6e-07,120]
[380031593,1755488521874,154.14,9.43e-05,2]
[380031594,1755488522182,1000.0,6.6e-07,120]
[380031595,1755488529900,1000.0,6.6e-07,120]
[380031596,1755488539768,1000.0,6.6e-07,120]
[380031597,1755488548397,1000.0,6.6e-07,120]
[380031598,1755488555813,1000.0,6.6e-07,120]
[380031599,1755488562754,-3.45,9.43e-05,2]
[380031600,1755488566143,1000.0,6.6e-07,120]
[380031601,1755488577505,1000.0,6.6e-07,120]
[380031602,1755488587562,1000.0,6.6e-07,120]
[380031603,1755488596448,1000.0,6.6e-07,120]
[380031604,1755488605945,1000.0,6.6e-07,120]
[380031605,1755488608324,-249.22,9.43e-05,2]
[380031606,1755488608346,-200.47,9.637e-05,2]
[380031607,1755488611998,-157.35,9.637e-05,2]
[380031608,1755488613288,1000.0,6.6e-07,120]
[380031609,1755488615292,-174.03692798,9.637e-05,2]
[380031610,1755488617577,-214.63987788,9.637e-05,2]
[380031611,1755488617784,-17.47999414,9.637e-05,2]
[380031612,1755488620447,-189.22218909,9.691e-05,2]
[380031613,1755488621339,1000.0,6.6e-07,120]
[380031614,1755488622822,-285.58126199,9.637e-05,2]
[380031615,1755488626374,-221.47770767,9.637e-05,2]
[380031616,1755488627936,-318.34103034,9.637e-05,2]
[380031617,1755488628563,1000.0,6.6e-07,120]
[380031618,1755488630185,-379.19805255,9.637e-05,2]
[380031619,1755488632106,-155.36053643,9.637e-05,2]
[380031620,1755488633678,-166.46474609,9.637e-05,2]
[380031621,1755488635884,-169.82103584,9.637e-05,2]
[380031622,1755488636684,1000.0,6.6e-07,120]
[380031623,1755488640188,-181.98224488,9.637e-05,2]
[380031624,1755488644199,250.0,7.2e-07,2]
[380031625,1755488645404,514.0,6.6e-07,120]
[380031626,1755488650102,-167.49875239,9.637e-05,2]
[380031627,1755488652158,-364.8567097,9.637e-05,2]
[380031628,1755488658069,-89.41792212,9.637e-05,2]
[380031629,1755488658092,-156.73221651,9.69e-05,2]
[380031630,1755488666589,-82.33149875,9.69e-05,2]
[380031631,1755488708184,-352.82225125,9.591e-05,2]
[380031632,1755488710630,-152.62080581,9.151e-05,2]
[380031633,1755488714775,-186.9480147,9.151e-05,2]
[380031634,1755488717887,-223.07341633,9.151e-05,2]
[380031635,1755488720817,-347.29365282,9.151e-05,2]
[380031636,1755488723754,-152.24088321,9.151e-05,2]
[380031637,1755488724424,500.0,6.6e-07,120]
[380031638,1755488727647,-178.12137767,9.151e-05,2]
[380031639,1755488729357,-179.45319945,9.151e-05,2]
[380031640,1755488732018,-299.73482975,9.151e-05,2]
[380031641,1755488733970,-166.84895843,9.151e-05,2]
[380031642,1755488734488,500.0,6.6e-07,120]
[380031643,1755488737139,-169.125044,9.151e-05,2]
[380031644,1755488741488,-201.08238331,9.151e-05,2]
[380031645,1755488743677,500.0,6.6e-07,120]
[380031646,1755488744758,-235.26296111,9.151e-05,2]
[380031647,1755488748107,-177.37591669,9.151e-05,2]
[380031648,1755488750540,-183.19346965,9.151e-05,2]
[380031649,1755488751776,500.0,6.6e-07,120]
[380031650,1755488754098,-300.17856362,9.151e-05,2]
[380031651,1755488756215,-152.18297532,9.151e-05,2]
[380031652,1755488758151,-184.88180825,9.151e-05,2]
[380031653,1755488759301,-212.04413637,9.151e-05,2]
[380031654,1755488761166,500.0,6.6e-07,120]
[380031655,1755488763070,-185.050511,9.151e-05,2]
[380031656,1755488765013,-278.61063792,9.151e-05,2]
[380031657,1755488766760,500.0,6.6e-07,120]
[380031658,1755488775113,500.0,6.6e-07,120]
[380031659,1755488777245,2000.0,6.678e-05,2]
[380031660,1755488777491,2000.0,6.678e-05,2]
[380031661,1755488777699,1862.47795552,6.678e-05,2]
[380031662,1755488777724,137.52204448,6.678e-05,2]
[380031663,1755488777921,2000.0,6.678e-05,2]
[380031664,1755488778113,2000.0,6.678e-05,2]
[380031665,1755488778265,1974.95591104,6.678e-05,2]
[380031666,1755488778288,25.04408896,6.678e-05,2]
[380031667,1755488778571,2000.0,6.678e-05,2]
[380031668,1755488778847,2000.0,6.678e-05,2]
[380031669,1755488779200,2000.0,6.678e-05,2]
[380031670,1755488779366,87.43386656,6.678e-05,2]
[380031671,1755488779389,1912.56613344,6.678e-05,2]
[380031672,1755488779543,2000.0,6.678e-05,2]
[380031673,1755488779651,2000.0,6.678e-05,2]
[380031674,1755488779926,199.91182208,6.678e-05,2]
[380031675,1755488779951,1800.08817792,6.678e-05,2]
[380031676,1755488780201,2000.0,6.678e-05,2]
[380031677,1755488780809,2000.0,6.678e-05,2]
[380031678,1755488781017,312.3897776,6.678e-05,2]
[380031679,1755488781041,1687.6102224,6.678e-05,2]
[380031680,1755488781169,2000.0,6.678e-05,2]
[380031681,1755488781395,1899.296,6.678e-05,2]
[380031682,1755488782858,525.57173312,6.716e-05,2]
[380031683,1755488783052,500.0,6.6e-07,120]
[380031686,1755488787813,-215.90610509,6.716e-05,2]
[380031688,1755488789184,-258.52216179,6.716e-05,2]
[380031689,1755488789208,-130.74267113,6.716e-05,2]
[380031690,1755488790026,500.0,6.6e-07,120]
[380031692,1755488791375,-283.58147838,6.716e-05,2]
[380031693,1755488795807,-241.61332438,6.716e-05,2]
[380031694,1755488798652,-344.06252611,6.716e-05,2]
[380031695,1755488798681,-50.45494293,6.716e-05,2]
[380031696,1755488799373,500.0,6.6e-07,120]
[380031698,1755488802262,-191.72426924,6.716e-05,2]
[380031700,1755488807092,500.0,6.6e-07,120]
[380031701,1755488807884,-324.69570717,6.716e-05,2]
[380031703,1755488813214,500.0,6.6e-07,120]
[380031704,1755488821924,500.0,6.6e-07,120]
[380031705,1755488830005,500.0,6.6e-07,120]
[380031706,1755488831346,-204.36751328,6.716e-05,2]
[380031707,1755488837925,-228.75756738,6.716e-05,2]
[380031708,1755488837946,-12.06790126,6.716e-05,2]
[380031709,1755488838107,500.0,6.6e-07,120]
[380031710,1755488843603,167.9457482,6.648e-05,2]
[380031711,1755488845956,500.0,6.6e-07,120]
[380031712,1755488853507,500.0,6.6e-07,120]
[380031713,1755488862794,500.0,6.6e-07,120]
[380031714,1755488871720,682.0,6.6e-07,120]
[380031715,1755488880489,-335.3112518,6.648e-05,2]
[380031716,1755488880515,-66.56230772,6.716e-05,2]
[380031717,1755488884983,-250.0,7.388e-05,2]
[380031718,1755488885006,-138.83362176,9.149e-05,2]
[380031719,1755488887725,-163.0876939,8.992e-05,2]
[380031720,1755488890197,-164.33723163,8.992e-05,2]
[380031721,1755488893946,-124.33507447,8.992e-05,2]
[380031722,1755488893973,-117.50427456,9.149e-05,2]
[380031723,1755488895775,-43.66210368,9.149e-05,2]
[380031724,1755488895798,-167.64430675,9.15e-05,2]
[380031725,1755488895822,-38.69358957,9.15e-05,2]
[380031726,1755488898071,-217.10076606,9.15e-05,2]
[380031727,1755488898095,-74.53162332,9.15e-05,2]
[380031728,1755488905748,-156.25633284,9.15e-05,2]
[380031729,1755488907509,-154.0098902,9.15e-05,2]
[380031730,1755488917864,-273.10898362,6.715e-05,2]
[380031731,1755488928569,500.0,6.6e-07,120]
[380031732,1755488930859,-226.89101638,6.715e-05,2]
[380031733,1755488930891,-2.74545096,6.715e-05,2]
[380031734,1755488933640,-293.62239233,6.715e-05,2]
[380031735,1755488934907,-203.63215671,6.715e-05,2]
[380031736,1755488934933,-1.10721786,6.715e-05,2]
[380031737,1755488935939,500.0,6.6e-07,120]
[380031738,1755488937673,1784.53498649,0.00024,120]
[380031739,1755488938273,-219.10123474,6.715e-05,2]
[380031740,1755488940208,-189.3557179,6.715e-05,2]
[380031741,1755488943059,152.0,0.0001388,10]
[380031742,1755488943281,500.0,6.6e-07,120]
[380031743,1755488955634,500.0,6.6e-07,120]
[380031744,1755488958212,-101.37176079,6.715e-05,2]
[380031745,1755488958236,-102.74126777,6.715e-05,2]
[380031746,1755488962596,500.0,6.6e-07,120]
[380031747,1755488965965,-193.37540226,6.715e-05,2]
[380031748,1755488969668,500.0,6.6e-07,120]
[380031749,1755488972089,-148.1421525,6.715e-05,2]
[380031750,1755488972114,-47.80487723,6.715e-05,2]
[380031751,1755488976633,-170.00142975,6.715e-05,2]
[380031752,1755488978777,500.0,6.6e-07,120]
[380031753,1755488980155,-182.60217982,6.715e-05,2]
[380031754,1755488983452,-99.5915132,6.715e-05,2]
[380031755,1755488983478,-76.0348664,6.715e-05,2]
[380031756,1755488984597,1892.0,0.00024,120]
[380031757,1755488985199,1363.0,0.00024,120]
[380031758,1755488986771,500.0,6.6e-07,120]
[380031759,1755488986981,-202.92805224,6.715e-05,2]
[380031760,1755488989550,-154.18,6.715e-05,2]
[380031761,1755488991254,-177.71031863,6.713e-05,2]
[380031762,1755488991277,-27.73364364,6.715e-05,2]
[380031763,1755488994407,500.0,6.6e-07,120]
[380031764,1755488995491,-39.12343772,6.715e-05,2]
[380031765,1755488996496,-266.86673668,6.715e-05,2]
[380031766,1755488998267,-233.13326332,6.715e-05,2]
[380031767,1755488998291,-95.46230392,6.715e-05,2]
[380031768,1755488999922,500.0,6.6e-07,120]
[380031769,1755489000808,-357.40925513,6.715e-05,2]
[380031770,1755489001155,-86.04127232,6.715e-05,2]
[380031771,1755489002422,-3.85028344,6.715e-05,2]
[380031772,1755489002472,-150.0,6.715e-05,2]
[380031773,1755489002500,-177.57711098,6.715e-05,2]
[380031774,1755489007295,-153.99,6.715e-05,2]
[380031775,1755489009062,-18.43288902,6.715e-05,2]
[380031776,1755489009090,-94.19685875,6.715e-05,2]
[380031777,1755489009149,500.0,6.6e-07,120]
[380031778,1755489009854,-74.74050446,6.715e-05,2]
[380031779,1755489009879,-78.35806477,6.715e-05,2]
[380031783,1755489011920,-299.9614797,6.715e-05,2]
[380031784,1755489014555,-190.82404836,6.715e-05,2]
[380031785,1755489018253,500.0,6.6e-07,120]
[380031786,1755489018926,-258.65306726,6.715e-05,2]
[380031787,1755489021967,-219.95489421,6.715e-05,2]
[380031788,1755489022027,-96.68850896,6.715e-05,2]
[380031789,1755489024018,-228.0290305,6.715e-05,2]
[380031790,1755489025785,-194.87817952,6.715e-05,2]
[380031791,1755489026050,500.0,6.6e-07,120]
[380031792,1755489028496,-234.57931495,6.715e-05,2]
[380031793,1755489029597,-46.53251157,6.715e-05,2]
[380031794,1755489030977,-208.45992187,6.715e-05,2]
[380031796,1755489032661,-231.96110485,6.715e-05,2]
[380031797,1755489032670,-193.46017777,6.715e-05,2]
[380031798,1755489032683,-950.97988549,6.715e-05,2]
[380031800,1755489032692,-1144.44006326,6.715e-05,2]
[380031802,1755489032701,-1144.44006326,6.715e-05,2]
[380031803,1755489032710,-1144.44006326,6.715e-05,2]
[380031804,1755489032720,-1144.44006326,6.715e-05,2]
[380031806,1755489032730,-1144.44006326,6.715e-05,2]
[380031807,1755489032740,-1144.44006326,6.715e-05,2]
[380031808,1755489032772,-1144.44006326,6.715e-05,2]
[380031809,1755489032785,-1144.44006326,6.715e-05,2]
[380031810,1755489032796,-1144.44006326,6.715e-05,2]
[380031811,1755489032806,-1144.44006326,6.715e-05,2]
[380031812,1755489032817,-1144.44006326,6.715e-05,2]
[380031813,1755489032827,-1144.44006326,6.715e-05,2]
[380031814,1755489032836,-1144.44006326,6.715e-05,2]
[380031815,1755489032845,-1144.44006326,6.715e-05,2]
[380031816,1755489032854,-1144.44006326,6.715e-05,2]
[380031817,1755489032862,-1144.44006326,6.715e-05,2]
[380031818,1755489032870,-1144.44006326,6.715e-05,2]
[380031819,1755489032879,-1144.44006326,6.715e-05,2]
[380031820,1755489032889,-1144.44006326,6.715e-05,2]
[380031821,1755489032900,-1144.44006326,6.715e-05,2]
[380031822,1755489032910,-1144.44006326,6.715e-05,2]
[380031823,1755489032921,-1144.44006326,6.715e-05,2]
[380031824,1755489032932,-1144.44006326,6.715e-05,2]
[380031825,1755489032941,-1144.44006326,6.715e-05,2]
[380031827,1755489032951,-1144.44006326,6.715e-05,2]
[380031829,1755489032960,-1144.44006326,6.715e-05,2]
[380031831,1755489032970,-1144.44006326,6.715e-05,2]
[380031833,1755489032979,-1144.44006326,6.715e-05,2]
[380031835,1755489032988,-1144.44006326,6.715e-05,2]
[380031837,1755489032997,-1144.44006326,6.715e-05,2]
[380031839,1755489033006,-1144.44006326,6.715e-05,2]
[380031841,1755489033015,-1144.44006326,6.715e-05,2]
[380031843,1755489033024,-1144.44006326,6.715e-05,2]
[380031845,1755489033033,-1144.44006326,6.715e-05,2]
[380031847,1755489033043,-1144.44006326,6.715e-05,2]
[380031849,1755489033053,-1144.44006326,6.715e-05,2]
[380031852,1755489033062,-1144.44006326,6.715e-05,2]
[380031854,1755489033073,-1144.44006326,6.715e-05,2]
[380031855,1755489033083,-1144.44006326,6.715e-05,2]
[380031856,1755489033093,-1144.44006326,6.715e-05,2]
[380031857,1755489033103,-1144.44006326,6.715e-05,2]
[380031858,1755489033113,-1144.44006326,6.715e-05,2]
[380031859,1755489033123,-1144.44006326,6.715e-05,2]
[380031860,1755489033132,-1144.44006326,6.715e-05,2]
[380031861,1755489033142,-1144.44006326,6.715e-05,2]
[380031862,1755489033152,-1144.44006326,6.715e-05,2]
[380031863,1755489033161,-1144.44006326,6.715e-05,2]
[380031864,1755489033171,-1144.44006326,6.715e-05,2]
[380031865,1755489033182,-1144.44006326,6.715e-05,2]
[380031866,1755489033191,-1144.44006326,6.715e-05,2]
[380031867,1755489033200,-1144.44006326,6.715e-05,2]
[380031868,1755489033209,-1144.44006326,6.715e-05,2]
[380031869,1755489033219,-1144.44006326,6.715e-05,2]
[380031870,1755489033228,-1066.44859229,6.715e-05,2]
[380031871,1755489033237,-1066.44859229,6.715e-05,2]
[380031872,1755489033247,-1066.44859229,6.715e-05,2]
[380031873,1755489033257,-1066.44859229,6.715e-05,2]
[380031874,1755489033266,-1066.44859229,6.715e-05,2]
[380031875,1755489033276,-1066.44859229,6.715e-05,2]
[380031876,1755489033285,-1066.44859229,6.715e-05,2]
[380031877,1755489033722,-1066.44859229,6.715e-05,2]
[380031878,1755489033751,-1066.44859229,6.715e-05,2]
[380031879,1755489033761,-1066.44859229,6.715e-05,2]
[380031880,1755489033771,-1066.44859229,6.715e-05,2]
[380031881,1755489033780,-1066.44859229,6.715e-05,2]
[380031882,1755489033791,-1066.44859229,6.715e-05,2]
[380031883,1755489033800,-1066.44859229,6.715e-05,2]
[380031884,1755489033810,-1066.44859229,6.715e-05,2]
[380031885,1755489033819,-1066.44859229,6.715e-05,2]
[380031886,1755489033828,-1066.44859229,6.715e-05,2]
[380031887,1755489033838,-1066.44859229,6.715e-05,2]
[380031888,1755489033847,-1066.44859229,6.715e-05,2]
[380031889,1755489033856,-1066.44859229,6.715e-05,2]
[380031890,1755489033866,-1066.44859229,6.715e-05,2]
[380031891,1755489033875,-1066.44859229,6.715e-05,2]
[380031892,1755489033886,-1066.44859229,6.715e-05,2]
[380031893,1755489033895,-1066.44859229,6.715e-05,2]
[380031894,1755489033904,-1066.44859229,6.715e-05,2]
[380031895,1755489033914,-1066.44859229,6.715e-05,2]
[380031896,1755489034132,-1066.44859229,6.715e-05,2]
[380031897,1755489034142,-1066.44859229,6.715e-05,2]
[380031898,1755489034152,-1066.44859229,6.715e-05,2]
[380031899,1755489034166,-1066.44859221,6.715e-05,2]
[380031900,1755489034175,-991.97498661,6.715e-05,2]
[380031901,1755489034185,-275.17,8.803e-05,2]
[380031902,1755489034195,-150.0,9.1e-05,2]
[380031903,1755489034205,-300.0,9.148e-05,2]
[380031904,1755489034215,-182.98031517,9.149e-05,2]
[380031905,1755489034225,-179.05604894,9.149e-05,2]
[380031906,1755489034235,-500.0,9.149e-05,2]
[380031907,1755489034245,-283.20008135,9.149e-05,2]
[380031908,1755489034255,-300.0,9.149e-05,2]
[380031909,1755489034265,-300.0,9.149e-05,2]
[380031910,1755489034275,-1200.0,9.149e-05,2]
[380031911,1755489034285,-250.0,9.15e-05,2]
[380031912,1755489034295,-580.0,9.15e-05,2]
[380031913,1755489034305,-27658.52645459,9.151e-05,2]
[380031914,1755489034315,-165.99,9.169e-05,2]
[380031915,1755489034325,-1517.0,9.56e-05,2]
[380031916,1755489034335,-202.94,9.572e-05,2]
[380031917,1755489034345,-2692.96984875,9.591e-05,2]
[380031918,1755489034355,-986.8849,9.591e-05,2]
[380031919,1755489034365,-163.2083,9.591e-05,2]
[380031920,1755489034375,-365.0,9.607e-05,2]
[380031921,1755489034385,-151.0,9.636e-05,2]
[380031922,1755489034395,-9999.99,9.69e-05,2]
[380031923,1755489034405,-150.99,9.69e-05,2]
[380031924,1755489034415,-22127.43,9.69e-05,2]
[380031925,1755489034425,-999.99,9.69e-05,2]
[380031926,1755489034435,-103180.90405771,9.691e-05,2]
[380031927,1755489034450,-2575.70481698,9.691e-05,2]
[380031928,1755489034462,-342.98861332,9.691e-05,2]
[380031929,1755489034568,-156.01492134,9.691e-05,2]
[380031930,1755489034616,-662.94393352,9.691e-05,2]
[380031931,1755489034690,-949.15948082,9.691e-05,2]
[380031932,1755489034756,-101904.02927462,9.691e-05,2]
[380031933,1755489034820,-8441.77293591,9.691e-05,2]
[380031934,1755489034857,-152877.92765449,9.691e-05,2]
[380031935,1755489034867,-89813.6034454,9.691e-05,2]
[380031936,1755489034878,-55389.9447101,9.691e-05,2]
[380031937,1755489034889,-57422.8021723,9.691e-05,2]
[380031938,1755489034900,-565.77873131,9.691e-05,2]
[380031939,1755489034911,-9999.99,9.691e-05,2]
[380031940,1755489034922,-49357.3,9.691e-05,2]
[380031941,1755489034933,-150.99,9.691e-05,2]
[380031942,1755489034943,-9999.99,9.691e-05,2]
[380031943,1755489034954,-433.80002914,9.698e-05,2]
[380031944,1755489034964,-299.99,9.698e-05,2]
[380031945,1755489034974,-20958.6906962,9.73e-05,2]
[380031946,1755489034984,-190457.4337,9.737e-05,2]
[380031947,1755489034995,-1000.0,9.737e-05,2]
[380031948,1755489035005,-3289.0444,9.737e-05,2]
[380031949,1755489035016,-650.57586686,9.752e-05,2]
[380031950,1755489035031,-170.0,9.836e-05,7]
[380031951,1755489035043,-150.0,9.888e-05,2]
[380031952,1755489035055,-150.0,9.888e-05,2]
[380031953,1755489035065,-151.6432447,9.888e-05,2]
[380031954,1755489035075,-150.0,9.888e-05,2]
[380031955,1755489035085,-155.63069275,9.888e-05,2]
[380031956,1755489035095,-153.97969395,9.888e-05,2]
[380031957,1755489035105,-150.0,9.888e-05,2]
[380031958,1755489035115,-150.0,9.888e-05,2]
[380031959,1755489035125,-1700.0,9.9e-05,3]
[380031960,1755489035135,-492.76,9.903e-05,2]
[380031961,1755489035144,-565.77873131,9.918e-05,2]
[380031962,1755489035155,-41416.62624188,9.931e-05,2]
[380031963,1755489035901,500.0,6.6e-07,120]
[380032035,1755489041302,-43823.4297676,9.931e-05,2]
[380032036,1755489041314,-631.18603,9.931e-05,2]
[380032037,1755489041532,-60242.83196544,9.931e-05,2]
[380032038,1755489041542,-262.63,9.974e-05,2]
[380032039,1755489041552,-500.0,0.0001,2]
[380032040,1755489041561,-151.0,0.0001,2]
[380032041,1755489041571,-500.0,0.0001,2]
[380032042,1755489041580,-151.0,0.0001,2]
[380032043,1755489041590,-500.0,0.0001,2]
[380032044,1755489041599,-339.58068367,0.0001,2]
[380032045,1755489041608,-151.0,0.0001,2]
[380032046,1755489041620,-151.0,0.0001,2]
[380032047,1755489041630,-151.0,0.0001,2]
[380032048,1755489041640,-151.0,0.0001,2]
[380032049,1755489041650,-151.0,0.0001,2]
[380032050,1755489041661,-151.0,0.0001,2]
[380032051,1755489041672,-151.0,0.0001,2]
[380032052,1755489041682,-151.0,0.0001,2]
[380032053,1755489041693,-151.0,0.0001,2]
[380032054,1755489041703,-151.0,0.0001,2]
[380032055,1755489041712,-3400.0,0.0001,3]
[380032056,1755489041723,-151.0,0.0001,2]
[380032057,1755489041733,-151.0,0.0001,2]
[380032058,1755489041745,-151.0,0.0001,2]
[380032059,1755489041755,-151.0,0.0001,2]
[380032060,1755489041766,-151.0,0.0001,2]
[380032061,1755489041775,-151.0,0.0001,2]
[380032062,1755489041785,-151.0,0.0001,2]
[380032063,1755489041794,-151.0,0.0001,2]
[380032064,1755489041804,-151.0,0.0001,2]
[380032065,1755489041814,-151.0,0.0001,2]
[380032066,1755489041824,-151.0,0.0001,2]
[380032067,1755489041833,-500.0,0.0001,2]
[380032068,1755489041843,-151.0,0.0001,2]
[380032069,1755489041854,-500.0,0.0001,2]
[380032070,1755489041865,-151.0,0.0001,2]
[380032071,1755489041875,-500.0,0.0001,2]
[380032072,1755489041889,-151.0,0.0001,2]
[380032073,1755489041902,-500.0,0.0001,2]
[380032074,1755489041911,-151.0,0.0001,2]
[380032075,1755489041922,-500.0,0.0001,2]
[380032076,1755489041932,-151.0,0.0001,2]
[380032077,1755489041941,-500.0,0.0001,2]
[380032078,1755489041951,-151.0,0.0001,2]
[380032079,1755489041962,-500.0,0.0001,2]
[380032080,1755489041972,-151.0,0.0001,2]
[380032081,1755489041981,-151.0,0.0001,2]
[380032082,1755489041990,-500.0,0.0001,2]
[380032083,1755489042000,-151.0,0.0001,2]
[380032084,1755489042009,-500.0,0.0001,2]
[380032085,1755489042019,-151.0,0.0001,2]
[380032086,1755489042028,-500.0,0.0001,2]
[380032087,1755489042037,-151.0,0.0001,2]
[380032088,1755489042047,-500.0,0.0001,2]
[380032089,1755489042056,-151.0,0.0001,2]
[380032090,1755489042065,-500.0,0.0001,2]
[380032091,1755489042074,-500.0,0.0001,2]
[380032092,1755489042083,-500.0,0.0001,2]
[380032093,1755489042093,-1222.04,0.0001,2]
[380032094,1755489042102,-500.0,0.0001,2]
[380032095,1755489042111,-200.0,0.0001,2]
[380032096,1755489042120,-179.0506759,0.0001,2]
[380032097,1755489042129,-151.0,0.0001,2]
[380032098,1755489042138,-500.0,0.00010055,2]
[380032099,1755489042148,-500.0,0.00010055,2]
[380032100,1755489042157,-1854.0,0.00010055,2]
[380032101,1755489042166,-500.0,0.00010055,2]
[380032102,1755489042176,-500.0,0.00010055,2]
[380032103,1755489042186,-500.0,0.00010055,2]
[380032104,1755489042195,-500.0,0.00010055,2]
[380032105,1755489042204,-150.0,0.00010055,2]
[380032106,1755489042215,-1145.0,0.00010055,2]
[380032107,1755489042223,-500.0,0.00010055,2]
[380032108,1755489042233,-500.0,0.00010055,2]
[380032109,1755489042242,-500.0,0.00010055,2]
[380032110,1755489042251,-500.0,0.00010055,2]
[380032111,1755489042260,-500.0,0.00010055,2]
[380032112,1755489042270,-500.0,0.00010055,2]
[380032113,1755489042279,-500.0,0.00010055,2]
[380032114,1755489042288,-151.015736,0.00010055,2]
[380032115,1755489042297,-500.0,0.00010055,2]
[380032116,1755489042306,-150.0,0.00010055,2]
[380032117,1755489042316,-500.0,0.00010055,2]
[380032118,1755489042326,-500.0,0.00010055,2]
[380032119,1755489042335,-150.0,0.00010055,2]
[380032120,1755489042344,-500.0,0.00010055,2]
[380032121,1755489042355,-500.0,0.00010055,2]
[380032122,1755489042365,-500.0,0.00010055,2]
[380032123,1755489042374,-150.0,0.00010055,2]
[380032124,1755489042385,-150.0,0.00010055,2]
[380032125,1755489042395,-150.0,0.00010055,2]
[380032126,1755489042405,-150.0,0.00010055,2]
[380032127,1755489042415,-500.0,0.00010055,2]
[380032128,1755489042426,-500.0,0.00010055,2]
[380032129,1755489042440,-150.0,0.00010055,2]
[380032130,1755489042449,-617.0,0.00010055,2]
[380032131,1755489042459,-300.0,0.00010064,2]
[380032132,1755489042468,-1680.0,0.00010064,2]
[380032133,1755489042477,-250.0,0.00010065,2]
[380032134,1755489042487,-150.0,0.00010071,2]
[380032135,1755489042496,-1211.66251023,0.00010099,3]
[380032136,1755489042505,-500.0,0.0001011,2]
[380032137,1755489042515,-152.0,0.00010118,2]
[380032138,1755489042524,-500.0,0.00010165,2]
[380032139,1755489042536,-5100.0,0.000102,3]
[380032140,1755489042547,-1006.97904764,0.00010216,2]
[380032141,1755489042557,-500.0,0.0001022,2]
[380032142,1755489042567,-89813.6034454,0.00010226,2]
[380032143,1755489042577,-565.77873131,0.00010246,2]